Cogmind - Beta 15 @@@ ROGUE MODE // 2025.05.30 @ 17:53:30 Player: Rohain Result: Destroyed by G-47 Trooper with Particle Gun Performance ------------- Evolutions (0) 0 Regions Visited (4) 800 Robots Destroyed (32) 160 Value Destroyed (635) 635 Prototype IDs (1) 20 Alien Tech Used (0) 0 Bonus (59) 59 TOTAL SCORE: 1674 Bonus ------- Follower Combat Kills 74 Friendly Fire -15 Cogmind --------- Core Integrity 0/250 Matter 223/300 Energy 200/200 System Corruption 0% Temperature Cool (9) Movement Rolling (110) Location -8/Recycling Parts ------- > --- POWER (1) -------- Subdweller Power Source > --- PROPULSION (2) --- Subdweller Monowheel > --- UTILITY (2) ------ Small Storage Unit > --- WEAPON (2) ------- Particle Gun > --- INVENTORY (8) ---- Improved Ion Engine Improved Ion Engine Improved Ion Engine Large Storage Unit Structural Scanner Cobbler Unit Peak State ------------ > --- POWER ------------ Heavy Ion Engine > --- PROPULSION ------- Aluminum Leg Aluminum Leg > --- UTILITY ---------- Small Storage Unit Visual Processing Unit > --- WEAPON ----------- Shotgun Shotgun > --- INVENTORY -------- Light Ion Engine Light Ion Engine Light Ion Engine Heavy Ion Engine Structural Scanner Small Laser Shotgun [Rating: 13] Favorites ----------- Power Improved Ion Engine Engine Improved Ion Engine Propulsion Aluminum Leg Leg Aluminum Leg Wheel Subdweller Monowheel Utility Small Storage Unit Storage Small Storage Unit Processor Signal Interpreter Weapon Shotgun Energy Gun Particle Gun Ballistic Gun Shotgun Ballistic Cannon Battle Cannon Build | -11 -10 -10 -10 -8 ------- Run | Yrd Mat Min Sub Rec Slots Evolved . | . . . . . Power . | . . . . . Propulsion . | . . . . . Utility . | . . . . . Weapon . | . . . . . Parts Attached 24 | 6 8 5 5 . Power 4 | 1 2 . 1 . Engine 4 | 1 2 . 1 . Core . | . . . . . Reactor . | . . . . . Propulsion 10 | 2 2 3 3 . Treads . | . . . . . Leg 7 | 2 2 3 . . Wheel 3 | . . . 3 . Hover . | . . . . . Flight . | . . . . . Utility 3 | 1 2 . . . Device . | . . . . . Storage 1 | 1 . . . . Processor 2 | . 2 . . . Hackware . | . . . . . Protection . | . . . . . Artifact . | . . . . . Weapon 7 | 2 2 2 1 . Energy Gun 2 | 1 . 1 . . Energy Cannon . | . . . . . Ballistic Gun 4 | 1 2 1 . . Ballistic Cannon 1 | . . . 1 . Launcher . | . . . . . Special Weapon . | . . . . . Impact Weapon . | . . . . . Slashing Weapon . | . . . . . Piercing Weapon . | . . . . . Special Melee Weapon . | . . . . . Unidentified Prototypes 1 | . 1 . . . Parts Lost 6 | . . 2 3 1 Power . | . . . . . Propulsion 2 | . . . 2 . Utility . | . . . . . Weapon 4 | . . 2 1 1 Highest Loss Streak 2 | . . 2 2 1 To Critical Strikes . | . . . . . Average Backups 7 | 1 6 7 7 6 Power 2 | . 2 3 3 3 Propulsion . | . . . . . Utility 1 | . 1 2 2 3 Weapon 2 | 1 2 2 1 . Tool/Special . | . . . . . Unused Backups 13 | . 5 1 1 6 Power 7 | . 4 . . 3 Propulsion . | . . . . . Utility 4 | . 1 . . 3 Weapon 2 | . . 1 1 . Tool/Special . | . . . . . Average Slot Usage (%) 96 | . 97 99 95 71 Engine 14 | . 14 14 14 14 Leg 21 | . 28 28 14 . Wheel 5 | . . . 11 14 Storage 14 | . 14 14 14 14 Processor 12 | . 12 14 12 . Energy Gun 4 | . 3 . 6 14 Ballistic Gun 20 | . 23 26 14 14 Ballistic Cannon 2 | . . . 7 . Peak Build Rating 13 | 6 13 11 13 10 Average Rating 10 | 4 10 10 11 9 On Entrance 7 | . 6 11 11 10 Naked Turns . | . . . . . Heaviest Build 19 | 14 19 18 18 16 Greatest Support 40 | 20 20 20 40 20 Greatest Overweight (x) . | . . . . . Average Overweight (x) . | . . . . . Largest Inventory Capacity 8 | 8 8 8 8 8 Average Capacity 7 | 6 8 8 8 8 Most Carried 8 | 4 8 8 8 7 Average Carried 7 | 1 6 7 7 7 Final Capacity 8 | 8 8 8 8 8 Final Carried 8 | 2 8 6 7 7 Class Distribution -------------------- 100% | Mutant Dominant Class ---------------- Mutant | -10/Materials Mutant | -10/Mines Mutant | -10/Subcaves Mutant | -8/Recycling Resources | -11 -10 -10 -10 -8 ----------- Run | Yrd Mat Min Sub Rec Matter Collected 999 | 251 303 200 245 . Remotely . | . . . . . Salvage Created 766 | . 449 146 171 . Parts 68 | . 41 10 17 . Haulers Intercepted 1 | . 1 . . . Recyclers Shooed . | . . . . . Parts Field Recycled . | . . . . . Retrieved Matter . | . . . . . Parts Self-Destructed 19 | . . . 19 . Prevented . | . . . . . Kills | -11 -10 -10 -10 -8 ------- Run | Yrd Mat Min Sub Rec Combat Hostiles Destroyed 26 | . 15 5 6 . Guns 24 | . 15 5 4 . Cannons 2 | . . . 2 . Classes Destroyed 7 | . 5 . 2 . Hauler 1 | . 1 . . . Recycler 1 | . 1 . . . Turret 2 | . . . 2 . Watcher 2 | . 2 . . . Swarmer 16 | . 9 3 4 . Grunt 8 | . 6 2 . . Subdweller 2 | . . . 2 . Best Kill Streak 7 | . 7 3 4 . Combat Bots Only 7 | . 7 3 4 . Max Kills in Single Turn 2 | . 1 2 1 . Gunslinging 1 | . . 1 . . Exploded . | . . . . . Melee . | . . . . . Uniques/NPCs Destroyed . | . . . . . Combat | -11 -10 -10 -10 -8 -------- Run | Yrd Mat Min Sub Rec Hostile Shots Fired 189 | . 68 35 84 2 Missed 60 | . 17 14 29 . Hits 129 | . 51 21 55 2 Projectile 129 | . 51 21 55 2 Critical Strikes 3 | . 1 . 2 . Damage Taken 1288 | . 458 225 573 32 Core 253 | . 89 50 98 16 Absorbed by Shields . | . . . . . Core Remaining (%) 100 | 100 . . . . Volleys Fired 93 | . 36 14 43 . Largest 2 | . 2 2 2 . Hottest 88 | . 60 88 88 . Shots Fired 183 | . 72 25 86 . Gun 161 | . 72 25 64 . Cannon 22 | . . . 22 . Launcher . | . . . . . Special . | . . . . . Kinetic 159 | . 70 24 65 . Thermal 22 | . . 1 21 . Explosive . | . . . . . Electromagnetic 2 | . 2 . . . Robot Hit Streak 11 | . 6 8 11 . Robot Miss Streak 11 | . 5 4 11 . Penetration Max . | . . . . . Secondary Targets 8 | . 3 3 2 . Max Gunslinging Chain 1 | . 1 1 1 . Shots Hit Robots 115 | . 46 19 50 . Core Hits 58 | . 28 10 20 . Critical Kills 1 | . 1 . . . Critical Parts Destroyed 1 | . 1 . . . Critical Strikes 2 | . 2 . . . Destroy 2 | . 2 . . . Melee Attacks . | . . . . . Impact . | . . . . . Slashing . | . . . . . Piercing . | . . . . . Sneak Attacks . | . . . . . Combat Hostiles . | . . . . . Follow-up Attacks . | . . . . . Damage Inflicted 1778 | . 637 306 835 . Guns 1546 | . 637 306 603 . Cannons 232 | . . . 232 . Explosions . | . . . . . Melee . | . . . . . Ramming . | . . . . . Kinetic 1581 | . 637 290 654 . Thermal 197 | . . 16 181 . Explosive . | . . . . . Electromagnetic . | . . . . . Impact . | . . . . . Slashing . | . . . . . Piercing . | . . . . . Highest Corruption . | . . . . . Average Corruption . | . . . . . Corruption Purged . | . . . . . Corruption Blocked . | . . . . . Overload Shots . | . . . . . Overflow Damage 6 | . . . 6 . Projectiles 6 | . . . 6 . Explosions . | . . . . . Melee . | . . . . . Knockbacks 3 | . . . 3 . Impact . | . . . . . Kinetic 2 | . . . 2 . Secondary 1 | . . . 1 . Self-Inflicted Damage . | . . . . . Shots . | . . . . . Rammed . | . . . . . Targets Rammed . | . . . . . Kicked . | . . . . . Crushed . | . . . . . Highest Temperature 42 | . 2 42 10 . Average Temperature 5 | . 2 10 3 . Received Heat Transfer 411 | . 108 81 204 18 Siege Activations . | . . . . . Martial Activations . | . . . . . Shielding Activations . | . . . . . Robots Disrupted . | . . . . . Combat Hostiles . | . . . . . Robots Corrupted . | . . . . . Combat Hostiles . | . . . . . Parts Fried . | . . . . . Impact Corruptions . | . . . . . Robots Melted . | . . . . . Combat Hostiles . | . . . . . Parts Melted 1 | . . . 1 . Heat Transferred 481 | . . 37 444 . Parts Sabotaged . | . . . . . Parts Stolen . | . . . . . Parts Stripped . | . . . . . Power Chain Reactions . | . . . . . Alert | -11 -10 -10 -10 -8 ------- Run | Yrd Mat Min Sub Rec Maximum Alert Level 1 | . 1 . . . Low Security (%) 92 | 100 80 100 . 100 Level 1 7 | . 19 . . . Level 2 . | . . . . . Level 3 . | . . . . . Level 4 . | . . . . . Level 5 . | . . . . . High Security . | . . . . . Max Security . | . . . . . Peak Influence 232 | . 232 117 . 79 Initial 79 | . . 67 . 79 Average 63 | . 114 31 . 50 Influence Increases 923 | . 401 181 341 . Destroy 0b10 Robot/C 600 | . 300 140 160 . Destroy 0b10 Robot/NC 20 | . 20 . . . Destroy Leader 96 | . 56 30 10 . Allied During Kill 12 | . . 6 6 . Successful Hack 15 | . 10 5 . . Disable Machine 15 | . 15 . . . Lose Combat Pursuer 165 | . . . 165 . Influence Decreases 914 | . 226 336 194 158 Entered New Map 207 | . . 108 11 88 Time Decay 637 | . 226 218 133 60 Lost Part 50 | . . 10 30 10 Lost Ally 20 | . . . 20 . Squads Dispatched 2 | . 2 . . . Investigation 1 | . 1 . . . Extermination . | . . . . . Reinforcement 1 | . 1 . . . Assault . | . . . . . Garrison . | . . . . . Intercept . | . . . . . Searches Triggered . | . . . . . Construction Impeded . | . . . . . Haulers Reinforced . | . . . . . Active Scanning Responses . | . . . . . Cargo Convoy Interrupts . | . . . . . Stealth | -11 -10 -10 -10 -8 --------- Run | Yrd Mat Min Sub Rec Distress Signals . | . . . . . Communications Jammed . | . . . . . Distress Signals . | . . . . . Times Spotted 49 | . 20 7 21 1 Peak Tracking Total 8 | . 8 3 6 1 Tactical Retreats 4 | . . . 4 . Traps | -11 -10 -10 -10 -8 ------- Run | Yrd Mat Min Sub Rec Traps Triggered 1 | . 1 . . . Indirectly . | . . . . . Trap Hack Attempts . | . . . . . Triggered . | . . . . . Disarmed . | . . . . . Reprogrammed . | . . . . . Reused . | . . . . . Traps Extracted . | . . . . . Installed . | . . . . . Triggered . | . . . . . Machines | -11 -10 -10 -10 -8 ---------- Run | Yrd Mat Min Sub Rec Machines Disabled 1 | . 1 . . . Max in Single Turn 1 | . 1 . . . Machines Repaired . | . . . . . Machines Dismantled . | . . . . . Machines Sabotaged . | . . . . . Overloaded Fab Kills . | . . . . . Hacking | -11 -10 -10 -10 -8 --------- Run | Yrd Mat Min Sub Rec Machines Accessed 5 | . 3 1 . 1 Terminals 5 | . 3 1 . 1 Fabricators . | . . . . . Repair Stations . | . . . . . Recycling Units . | . . . . . Scanalyzers . | . . . . . Garrison Access . | . . . . . Total Hacks 15 | . 11 2 . 2 Successful 6 | . 4 2 . . Failed 9 | . 7 . . 2 Catastrophic . | . . . . . Database Lockouts . | . . . . . Manual 15 | . 11 2 . 2 Terminals 15 | . 11 2 . 2 Fabricators . | . . . . . Repair Stations . | . . . . . Recycling Units . | . . . . . Scanalyzers . | . . . . . Garrison Access . | . . . . . Terminal Hacks 1 | . . 1 . . Robot Analysis 1 | . . 1 . . Fabricator Hacks . | . . . . . Repair Station Hacks . | . . . . . Recycling Unit Hacks . | . . . . . Scanalyzer . | . . . . . Garrison Access Hacks . | . . . . . Unauthorized Hacks 5 | . 4 1 . . Terminals 5 | . 4 1 . . Assimilate 1 | . 1 . . . Botnet 3 | . 2 1 . . Operators 1 | . 1 . . . Fabricators . | . . . . . Repair Stations . | . . . . . Recycling Units . | . . . . . Scanalyzers . | . . . . . Garrison Access . | . . . . . Data Cores Recovered . | . . . . . Used . | . . . . . Hacking Detections 4 | . 2 1 . 1 Full Trace Events . | . . . . . Feedback Events . | . . . . . Feedback Blocked . | . . . . . Robot Schematics Acquired . | . . . . . Robots Built . | . . . . . Authchips . | . . . . . Time . | . . . . . Total Robot Build Rating . | . . . . . Part Schematics Acquired . | . . . . . Parts Built . | . . . . . Authchips . | . . . . . Time . | . . . . . Total Part Build Rating . | . . . . . Parts Repaired . | . . . . . Time . | . . . . . Parts Recycled . | . . . . . Recycled Matter . | . . . . . Retrieved Matter . | . . . . . Retrieved Components . | . . . . . Parts Scanalyzed . | . . . . . Part Schematics Acquired . | . . . . . Parts Damaged . | . . . . . Bothacking | -11 -10 -10 -10 -8 ------------ Run | Yrd Mat Min Sub Rec Used RIF Installer . | . . . . . Robots Hacked . | . . . . . Non-combat . | . . . . . Combat . | . . . . . Robot Hacks Applied . | . . . . . Relay Couplers Released . | . . . . . Fabnet Peak Effective % . | . . . . . Robots Rewired . | . . . . . Allies Hacked . | . . . . . Hacks Repelled . | . . . . . Allies | -11 -10 -10 -10 -8 -------- Run | Yrd Mat Min Sub Rec Total Allies 2 | . . 2 . . Largest Group 2 | . . 2 2 . Highest-Rated Group 48 | . . 48 48 . Highest-Rated Ally 31 | . . 31 31 . Total Orders . | . . . . . Ally Attacks 18 | . . 7 11 . Total Damage 314 | . . 127 187 . Kills 4 | . . 2 2 . Allies Corrupted . | . . . . . Allies Melted . | . . . . . Intel | -11 -10 -10 -10 -8 ------- Run | Yrd Mat Min Sub Rec Active Infowar (turns) 469 | . 469 . . . Optics 469 | . 469 . . . Robot Analysis Total 1 | . . 1 . . Derelict Logs Recovered 2 | . . 1 1 . Drone Launches . | . . . . . Drone Recoveries . | . . . . . Exploration | -11 -10 -10 -10 -8 ------------- Run | Yrd Mat Min Sub Rec Turns Passed 2714 | 64 647 844 1028 131 Spaces Moved 1838 | 47 411 557 712 111 Core 5 | 5 . . . . Treads . | . . . . . Legs 1386 | 42 411 557 376 . Wheels 447 | . . . 336 111 Hover . | . . . . . Flight . | . . . . . Fastest Speed 50 | 50 120 120 110 110 Average Speed 117 | 112 120 120 115 110 Slowest Speed 120 | 120 120 120 120 110 Overloaded Moves . | . . . . . Propulsion Burnouts . | . . . . . Robots Hopped . | . . . . . Potential Cave-ins . | . . . . . Cave-ins Triggered . | . . . . . Exploration Rate (%) 52 | 4 79 97 52 32 Regions Visited 4 Branch Regions 3 Pre-discovered Areas 2 | . . . 2 . Known Exits Taken 2 | . 1 1 . . Unknown Exits Taken 2 | 1 . . 1 . Scrap Searched 1 | . . 1 . . Spaces Dug . | . . . . . Terrain Destroyed 1 | . . . 1 . Melee . | . . . . . Projectile 1 | . . . 1 . AOE . | . . . . . Terrain Rammed . | . . . . . Walls Destroyed . | . . . . . Machines Disabled . | . . . . . Actions | -11 -10 -10 -10 -8 --------- Run | Yrd Mat Min Sub Rec Total 2219 | 56 499 710 834 120 Wait 222 | . 21 130 65 6 Move 1834 | 46 410 556 711 111 Hop . | . . . . . Pick Up 20 | 4 12 1 3 . Fast Attach 11 | 4 5 . 2 . Attach 7 | 2 1 2 2 . Detach . | . . . . . Swap 7 | . 2 3 2 . Drop 21 | . 12 4 5 . Fire 93 | . 36 14 43 . Melee . | . . . . . Ram . | . . . . . Kick . | . . . . . Crush . | . . . . . Escape Stasis . | . . . . . Rewire 4 | . . . 1 3 Trap . | . . . . . Miscellaneous . | . . . . . Route ------- -11/Scrapyard -10/Materials (discovered 4 exits: *Mat x3 / *Min) -10/Mines (discovered 3 exits: *Mat x2 / *Sub) -10/Subcaves (discovered 3 exits: [*Mat x2] / *Rec) -8/Recycling History --------- Turn | Location | Event 19 | -11/Scrapyard | Discovered new exit (range 15) 65 | -11/Scrapyard | Entered Materials 202 | -10/Materials | Discovered new exit (range 6) 306 | -10/Materials | Build established: Mutant 350 | -10/Materials | Destroyed 7 combat bots 492 | -10/Materials | Discovered new exit (range 3) 626 | -10/Materials | Discovered new exit (range 16) 642 | -10/Materials | Identified exit to Materials 699 | -10/Materials | Discovered new exit (range 12) 711 | -10/Materials | Identified exit to Mines 712 | -10/Materials | Entered Mines 725 | -10/Mines | Core integrity fell below 50% 787 | -10/Mines | Discovered exit to Materials (range 14) 796 | -10/Mines | Learned Materials stockpile data 925 | -10/Mines | Discovered exit to Materials (range 11) 1526 | -10/Mines | Discovered new exit (range 9) 1547 | -10/Mines | Identified exit to Subcaves 1556 | -10/Mines | Entered Subcaves 1556 | -10/Subcaves | Accompanied by 2 allies 1557 | -10/Subcaves | Approached by a straggling Scientist 1561 | -10/Subcaves | Led the pair of lost Derelicts to an unsafe place 1599 | -10/Subcaves | Learned location of Zion (-6) 1599 | -10/Subcaves | Met a Zionite searching for "candidates" 1773 | -10/Subcaves | Discovered new exit (range 11) 1905 | -10/Subcaves | Learned location of Mines (-8) 1950 | -10/Subcaves | Shifting Twisted Machinery released Battle Cannon 1950 | -10/Subcaves | Shifting Twisted Machinery released Spk. Treads 2108 | -10/Subcaves | A swath of the cavern ceiling suddenly collapsed 2265 | -10/Subcaves | Discovered new exit (range 11) 2400 | -10/Subcaves | Shifting Twisted Machinery released Piercing Trap 2558 | -10/Subcaves | Discovered new exit (range 8) 2564 | -10/Subcaves | Core integrity fell below 20% 2584 | -10/Subcaves | Entered Recycling 2715 | -8/Recycling | Destroyed by G-47 Trooper with Particle Gun Last Messages --------------- 02544_ Acquired 21 matter. 02546_ Flight Unit fries itself beyond repair. 02548_ Lgt. Assault Rifle fries itself beyond repair. 02551_ Flight Unit fries itself beyond repair. 02558_ EXIT=FOUND 02566_ Autobeam Turret destroyed. 02566_ Switching to secondary target: Autobeam Turret. 02575_ Autobeam Turret destroyed. 02581_ Acquired 15 matter. LOCATION=UNKNOWN GOAL=ESCAPE 02687_ Connecting with Terminal... 02687_ Current location identified: Recycling 02713_ Attempting to rewire H-55 Commando. 02713_ G-47 Trooper springs to life. 02713_ Shotgun destroyed. 02714_ Attempting to rewire H-55 Commando. Map ----- +----------------------------------------------------+ | ?????????????????????????????????????????????????? | | ?????????????????????????????????????????????????? | | ?????????????????????????????????????????????????? | | ?????????????????????????????????????????????????? | | ?????????????????????????????????????????????????? | | ??????????????? ?????????????????????????????????? | | ??????????????# ???????????????????????????????? | | ??????????????# ???????????????????????????????? | | ???????????#### ???????????????????????????????? | | ??????????? ??????????????????????????????? | | ???????????? ??????????????????????????????? | | ????????? ?? ??????????????????????????????? | | ????????? ??????????????????????????????? | | ?????????"" """ ??????????????????????????????? | | ????????""" """ ??????????????????????????????? | | ?????# """ """ ??????????????????????????????? | | ?????# #?????????????????????????????? | | ?????# ##########????????????????????? | | ???? T ???????????????? | | ???????????## ######?????????????????????? | | ????????????# #??????????????????????????? | | ????????????# #??????????????????????????? | | ????????????# #??????????????????????????? | | ????????????#+## ################???????????? | | ???????????????# +!u r #???????????? | | ???????????????# #####!@h YY k!gt #???????????? | | ???????????????# T#??# % ra!!s#???????????? | | ???????????????# ##??# gh !g #???????????? | | ???????????????# ###########+#######???????????? | | ???????????????# ???????????????? | | ???????????????+ ???????????????? | | ???????????????# ???????????????? | | ???????????????### ###########+##????????????????? | | ???????????????#"" #?????????????????????????????? | | ???????????????#"Y #?????????????????????????????? | | ???????????????#"" #?????????????????????????????? | | ???????????????### #?????????????????????????????? | | ?????????????????# #?????????????????????????????? | | ??????????########+#####?????????????????????????? | | ??????????# #?????????????????????????? | | ??????????# "#?????????????????????????? | | ??????????# "#?????????????????????????? | | ??######### "#?????????????????????????? | | ??# / T#?????????????????????????? | | ??# ### "#?????????????????????????? | | ??# #?# """ """ "#?????????????????????????? | | ??# #?# """ """ "#?????????????????????????? | | ??# #?# """ """ #?????????????????????????? | | ??# #?# """ """ #?????????????????????????? | | ### #?# """ """ #?????????????????????????? | +----------------------------------------------------+ Best States ------------- Heat Dissipation 25 Energy Generation 15 Energy Capacity 280 Matter Stores 300 Matter Capacity 300 Sight Range 18 Terrain Scan Density 10 Evasion (%) 55 Item Schematics ----------------- None Robot Schematics ------------------ None Fabricated ------------ Nothing Repaired ---------- Nothing Alien Tech Used ----------------- None Achievements -------------- None Challenges ------------ None Game ------ Seed MolecularImpulseArticulator Manual? 0 Play Time 00:14:12 Cumulative 73.9 hours Start 2025.05.30 @ 17:39:46 End 2025.05.30 @ 17:53:30 Sessions 1 Manual Loads 0 Difficulty Rogue Special Mode None Game No. 128 Rogue 112 Adventurer 16 Explorer 0 Win Type - Total 1 Types 1/0/0/0/0/0/0/0/0/0 Lore% 25 Gallery% 48 Achievement% 48 Wizard Run 0 Options --------- Layout 2 ASCII 0 Keyboard 0 Movement Mouse Keybinds 0 Fullscreen 1 Font 24/Smallcaps Map View 50x44 Zoom Use 0% Tactical HUD 1 Map Filters NONE Filters NONE Steam 1 RUN: 299d2ee6-59fd-43c1-b410-514689e78e9a